bitfinex/quotes_SOLUSD_20250216
["timestamp","ask_amount","ask_price","bid_price","bid_amount"]
[1739668892138,24.37563158,194.38,194.37,0.03]
[1739668892842,29.52013158,194.38,194.37,0.03]
[1739668894043,10.07475713,194.3,194.26,6.1526]
[1739668894252,10.07475713,194.33,194.27,10.07475713]
[1739668894747,10.07475713,194.31,194.26,6.1526]
[1739668894933,10.07475713,194.3,194.26,6.1526]
[1739668895136,10.07475713,194.32,194.26,16.22735713]
[1739668895350,10.07475713,194.34,194.27,10.07475713]
[1739668895536,10.07475713,194.33,194.27,10.07475713]
[1739668895727,10.07475713,194.32,194.26,6.1526]
[1739668895932,10.07475713,194.31,194.26,6.1526]
[1739668896357,10.07475713,194.32,194.26,16.22735713]
[1739668896739,10.07475713,194.33,194.26,16.22735713]
[1739668896941,20.0,194.34,194.26,6.1526]
[1739668896942,10.07475713,194.31,194.26,6.1526]
[1739668897150,10.07475713,194.32,194.25,10.07475713]
[1739668897351,10.07475713,194.33,194.26,10.07475713]
[1739668898049,10.07475713,194.32,194.26,10.07475713]
[1739668898860,10.07475713,194.31,194.25,10.07475713]
[1739668899061,10.07475713,194.31,194.26,0.03]
[1739668899948,0.88902592,194.34,194.26,0.03]
[1739668899949,10.07475713,194.3,194.26,0.03]
[1739668900148,10.07475713,194.29,194.26,0.03]
[1739668900343,10.07475713,194.28,194.26,0.03]
[1739668900544,10.07475713,194.27,194.26,0.03]
[1739668901866,30.07475713,194.28,194.26,0.03]
[1739668902064,10.07475713,194.29,194.26,0.03]
[1739668902363,10.07475713,194.34,194.27,10.07475713]
[1739668902564,10.07475713,194.34,194.28,10.07475713]
[1739668902770,10.07475713,194.35,194.29,10.07475713]
[1739668903174,10.07475713,194.34,194.28,10.07475713]
[1739668903346,10.07475713,194.33,194.27,10.07475713]
[1739668903681,15.89321758,194.33,194.27,15.89321758]
[1739668903980,15.89321758,194.33,194.26,20.03]
[1739668903981,15.89321758,194.34,194.28,15.89321758]
[1739668904145,15.89321758,194.34,194.29,5.1469]
[1739668905667,0.063,194.39,194.33,15.89321758]
[1739668905858,0.063,194.39,194.38,15.89321758]
[1739668906176,0.063,194.39,194.38,21.03771758]
[1739668908983,0.063,194.39,194.38,15.89321758]
[1739668909186,0.063,194.39,194.36,21.03811758]
[1739668909384,0.063,194.39,194.36,5.1449]
[1739668909684,0.063,194.39,194.34,15.89321758]
[1739668909855,0.063,194.39,194.34,21.03851758]
[1739668910049,0.063,194.39,194.34,5.1453]
[1739668910459,0.063,194.39,194.34,21.03851758]
[1739668910782,0.063,194.39,194.37,0.03]
[1739668914958,0.063,194.39,194.38,15.89321758]
[1739668915891,0.063,194.39,194.38,21.03771758]
[1739668919776,0.063,194.39,194.38,238.66917671]
[1739668919777,0.0001,194.39,194.38,238.66917671]
[1739668919974,0.0001,194.39,194.38,237.89771758]
[1739668920373,0.0001,194.39,194.38,259.50266611]
[1739668920790,83.7537,194.53,194.41,21.0]
[1739668920791,99.64691758,194.53,194.41,21.0]
[1739668920974,15.89321758,194.52,194.46,15.89321758]
[1739668921474,15.89321758,194.54,194.48,21.03511758]
[1739668921665,15.89321758,194.55,194.49,15.89321758]
[1739668921858,20.0,194.55,194.49,15.89321758]
[1739668922062,20.0,194.55,194.5,15.89321758]
[1739668922263,15.89321758,194.56,194.5,15.89321758]
[1739668922602,0.063,194.59,194.54,15.89321758]
[1739668922885,15.95621758,194.59,194.53,15.89321758]
[1739668923105,15.95621758,194.59,194.52,15.89321758]
[1739668923268,15.95621758,194.59,194.53,15.89321758]
[1739668923468,0.063,194.59,194.53,21.03361758]
[1739668923796,0.063,194.59,194.54,15.89321758]
[1739668923957,0.063,194.59,194.55,15.89321758]
[1739668925096,0.063,194.59,194.56,15.89321758]
[1739668925888,0.063,194.59,194.55,15.89321758]
[1739668926095,15.95621758,194.59,194.53,15.89321758]
[1739668926575,0.063,194.59,194.53,15.89321758]
[1739668926983,15.95621758,194.59,194.52,15.89321758]
[1739668927193,15.89321758,194.57,194.5,21.03431758]
[1739668927384,15.89321758,194.57,194.51,15.89321758]
[1739668928207,15.89321758,194.56,194.49,230.75321758]
[1739668928381,15.89321758,194.55,194.49,95.25321758]
[1739668929807,15.89321758,194.53,194.49,79.36]
[1739668930000,15.89321758,194.52,194.48,81.48]
[1739668930305,15.89321758,194.53,194.46,21.03551758]
[1739668930504,15.89321758,194.54,194.47,15.89321758]
[1739668932008,15.89321758,194.54,194.47,21.03521758]
[1739668932215,15.89321758,194.56,194.49,15.89321758]
[1739668932416,1.6256,194.57,194.51,15.89321758]
[1739668933785,22.65831758,194.57,194.5,21.03431758]
[1739668934085,17.51881758,194.57,194.5,15.89321758]
[1739668934280,15.89321758,194.58,194.51,15.89321758]
[1739668934708,15.89321758,194.56,194.5,15.89321758]
[1739668934897,15.89321758,194.56,194.49,15.89321758]
[1739668935092,15.89321758,194.57,194.5,15.89321758]
[1739668935486,15.89321758,194.57,194.51,5.1411]
[1739668935800,15.89321758,194.58,194.51,21.03431758]
[1739668936510,0.063,194.59,194.53,15.89321758]
[1739668936711,0.063,194.59,194.56,15.89321758]
[1739668937214,0.063,194.59,194.55,15.89321758]
[1739668937913,0.063,194.59,194.56,5.1398]
[1739668938283,0.063,194.59,194.57,15.89321758]
[1739668939295,0.063,194.59,194.58,15.89321758]
[1739668939888,0.063,194.59,194.58,21.03241758]
[1739668941209,0.063,194.59,194.58,100.39241758]
[1739668941417,0.063,194.59,194.58,236.89241758]
[1739668943388,0.063,194.59,194.58,251.30426611]
[1739668944196,0.063,194.59,194.58,250.30426611]
[1739668944602,0.063,194.59,194.58,251.30426611]
[1739668947519,0.0001,194.59,194.58,267.19748369]
[1739668947708,0.0001,194.59,194.58,303.58898369]
[1739668948107,0.0001,194.59,194.58,287.69576611]
[1739668950225,0.0001,194.59,194.58,303.58898369]
[1739668950925,0.0001,194.59,194.58,287.69576611]
[1739668953428,0.0001,194.59,194.58,303.58898369]
[1739668954719,0.0001,194.59,194.58,287.69576611]
[1739668955121,0.0001,194.59,194.58,303.12576611]
[1739668955922,0.0001,194.59,194.58,319.01898369]
[1739668956607,0.063,194.65,194.64,1.0]
[1739668956807,0.063,194.65,194.64,231.75321758]
[1739668957716,0.063,194.65,194.64,236.89081758]
[1739668958531,0.0001,194.66,194.64,251.30266611]
[1739668958728,0.0001,194.66,194.65,15.89321758]
[1739668959531,0.0001,194.66,194.65,16.89321758]
[1739668959729,0.0001,194.66,194.65,22.03061758]
[1739668961935,0.0001,194.66,194.65,236.89061758]
[1739668962835,0.0001,194.66,194.65,235.89061758]
[1739668965524,0.0001,194.66,194.65,219.9974]
[1739668966936,0.0001,194.66,194.65,235.89061758]
[1739668967530,0.0001,194.66,194.65,84.4974]
[1739668968227,0.0001,194.66,194.64,5.1376]
[1739668969222,0.0001,194.66,194.62,214.86]
[1739668969536,0.0001,194.66,194.63,5.1379]
[1739668970946,0.0001,194.66,194.64,0.03]
[1739668973556,0.0001,194.66,194.64,10.16525015]
[1739668973739,0.0001,194.66,194.65,10.13525015]
[1739668974752,0.0001,194.66,194.65,15.27265015]
[1739668975757,0.0001,194.66,194.65,94.63265015]
[1739668979250,0.0001,194.66,194.65,15.27265015]
[1739668979449,0.0001,194.66,194.6,77.2025006]
[1739668979450,20.0,194.6,194.58,0.03]
[1739668979752,3.56571781,194.59,194.58,0.03]
[1739668979929,20.0,194.58,194.47,81.36]
[1739668980123,20.0,194.58,194.47,85.24]
[1739668980445,30.0,194.57,194.47,85.24]
[1739668980623,10.13525015,194.54,194.47,85.24]
[1739668980951,10.13525015,194.5,194.46,8.04100475]
[1739668981552,10.13525015,194.49,194.46,8.04100475]
[1739668981743,15.86614275,194.49,194.46,8.04100475]
[1739668981946,15.86614275,194.49,194.47,81.38]
[1739668982257,15.86614275,194.5,194.47,81.38]
[1739668984361,15.86614275,194.49,194.47,81.38]
[1739668984956,15.86614275,194.5,194.47,81.38]
[1739668985553,15.86614275,194.49,194.47,81.38]
[1739668985956,15.86614275,194.48,194.47,81.38]
[1739668989859,15.86614275,194.51,194.47,81.38]
[1739668990264,15.86614275,194.5,194.47,81.38]
[1739668992363,15.86614275,194.48,194.47,81.38]
[1739668994357,15.86614275,194.5,194.47,81.41]
[1739668995581,15.86614275,194.49,194.47,81.41]
[1739668997564,5.1408,194.52,194.47,81.41]
[1739668997565,15.86614275,194.48,194.47,81.41]
[1739668998466,15.86614275,194.49,194.47,81.41]
[1739668999152,15.86614275,194.48,194.47,81.41]
[1739669005679,10.15695475,194.48,194.47,81.41]
[1739669007177,15.29885475,194.48,194.47,81.41]
[1739669011184,15.29885475,194.48,194.47,0.03]
[1739669012685,10.15695475,194.48,194.47,0.03]
[1739669016971,15.29885475,194.48,194.47,0.03]
[1739669023097,16.18788067,194.48,194.47,0.03]
[1739669023301,20.0,194.45,194.44,0.03]
[1739669023499,31.04598067,194.45,194.44,0.03]
[1739669023684,36.18868067,194.45,194.44,0.03]
[1739669024988,62.4572292,194.45,194.39,0.03]
[1739669025186,10.15695475,194.4,194.39,0.03]
[1739669026088,15.30095475,194.4,194.39,0.03]
[1739669035999,55.92877375,194.4,194.39,0.03]
[1739669037424,57.45027375,194.4,194.39,0.03]
[1739669040818,57.45027375,194.4,194.39,0.03]
[1739669042318,58.33929967,194.4,194.39,0.03]
[1739669043442,17.71148067,194.4,194.39,0.03]
[1739669043744,10.15695475,194.4,194.39,0.03]
[1739669044031,15.30095475,194.4,194.39,0.03]
[1739669050137,10.15695475,194.4,194.39,0.03]
[1739669050915,15.30095475,194.4,194.39,0.03]
[1739669051121,10.15695475,194.4,194.39,0.03]
[1739669051446,15.30095475,194.4,194.39,0.03]
[1739669062536,10.15695475,194.4,194.39,0.03]
[1739669063350,15.30095475,194.4,194.39,0.03]
[1739669064859,10.15695475,194.41,194.39,0.03]
[1739669065154,10.15695475,194.42,194.39,0.03]
[1739669065821,10.15695475,194.41,194.39,0.03]
[1739669070533,10.21995475,194.44,194.39,0.03]
[1739669070736,0.063,194.44,194.4,10.15695475]
[1739669072267,0.063,194.44,194.39,0.03]
[1739669072971,5.206,194.44,194.39,0.03]
[1739669073277,0.063,194.44,194.39,0.03]
[1739669075035,0.063,194.44,194.39,81.51]
[1739669077966,10.21995475,194.44,194.39,81.51]
[1739669078467,0.063,194.44,194.39,91.66695475]
[1739669079272,0.063,194.44,194.39,81.51]
[1739669081166,0.063,194.44,194.39,91.66695475]
[1739669081368,0.063,194.44,194.4,10.15695475]
[1739669081865,0.063,194.44,194.39,91.66695475]
[1739669082076,0.063,194.44,194.4,10.15695475]
[1739669082248,0.063,194.44,194.41,10.15695475]
[1739669082443,0.063,194.44,194.4,10.15695475]
[1739669083950,0.063,194.44,194.41,10.15695475]
[1739669084265,0.063,194.44,194.41,6.561]
[1739669086464,0.063,194.44,194.4,214.86]
[1739669086669,10.21995475,194.44,194.4,214.86]
[1739669086848,0.063,194.44,194.41,3.74]
[1739669087166,0.063,194.44,194.4,214.86]
[1739669088154,0.063,194.44,194.4,296.32]
[1739669089176,0.063,194.44,194.4,306.47695475]
[1739669089677,0.063,194.44,194.4,170.97695475]
[1739669092575,0.063,194.44,194.41,10.15695475]
[1739669092781,0.063,194.44,194.42,10.15695475]
[1739669096182,0.063,194.44,194.41,10.15695475]
[1739669099798,10.21995475,194.44,194.4,160.85]
[1739669099970,10.15695475,194.43,194.4,160.85]
[1739669100290,10.21995475,194.44,194.4,160.85]
[1739669101373,0.063,194.44,194.4,160.85]
[1739669106775,10.21995475,194.44,194.4,160.85]
[1739669108490,0.063,194.44,194.4,160.85]
[1739669109499,10.21995475,194.44,194.4,160.85]
[1739669110789,0.063,194.44,194.4,160.85]
[1739669111288,10.21995475,194.44,194.4,160.85]
[1739669114402,0.063,194.44,194.4,160.85]
[1739669116198,0.063,194.44,194.4,79.39]
[1739669118606,0.063,194.44,194.41,10.15695475]
[1739669119403,0.063,194.44,194.42,10.15695475]
[1739669120100,0.063,194.44,194.41,89.51695475]
[1739669120306,0.063,194.44,194.41,79.36]
[1739669125397,10.15695475,194.43,194.4,0.03]
[1739669126018,10.15695475,194.41,194.4,0.03]
[1739669126489,10.15695475,194.42,194.4,0.03]
[1739669129000,10.15695475,194.43,194.4,0.03]
[1739669131303,10.15695475,194.42,194.4,0.03]
[1739669133193,10.15695475,194.43,194.4,0.03]
[1739669142514,15.30015475,194.43,194.4,0.03]
[1739669142702,10.15695475,194.42,194.4,0.03]
[1739669143190,15.30045475,194.42,194.4,0.03]
[1739669143391,10.15695475,194.41,194.4,0.03]
[1739669146107,10.15695475,194.43,194.4,0.03]
[1739669155831,15.30015475,194.43,194.4,0.03]
[1739669160402,21.5339,194.38,194.24,12.20492386]
[1739669160727,10.15695475,194.28,194.23,8.04100475]
[1739669160932,41.04598067,194.28,194.23,8.04100475]
[1739669161110,40.15695475,194.28,194.23,8.04100475]
[1739669161421,20.0,194.26,194.22,8.04100475]
[1739669161632,10.15695475,194.23,194.22,8.04100475]
[1739669162148,64.19662228,194.23,194.22,8.04100475]
[1739669162429,13.41184853,194.21,194.17,48.18600061]
[1739669162613,35.00684853,194.18,194.17,35.67510136]
[1739669162820,13.41184853,194.17,194.16,40.02018754]
[1739669163021,2.48402592,194.18,194.16,40.02018754]
[1739669163526,40.15695475,194.17,194.16,40.02018754]
[1739669163934,10.15695475,194.19,194.16,40.02018754]
[1739669164119,10.15695475,194.17,194.16,40.02018754]
[1739669164827,10.15695475,194.18,194.16,40.02018754]
[1739669165230,5.1489,194.22,194.13,135.5]
[1739669165231,10.15695475,194.17,194.13,135.5]
[1739669165435,10.15695475,194.16,194.11,6.2417]
[1739669165734,10.15695475,194.15,194.11,6.2417]
[1739669166225,10.15695475,194.19,194.15,20.0]
[1739669166413,8.05479581,194.16,194.15,24.56880328]
[1739669166618,8.05479581,194.16,194.15,44.56880328]
[1739669166820,8.05479581,194.16,194.15,161.06880328]
[1739669167019,6.38819581,194.16,194.15,160.06880328]
[1739669167215,6.38819581,194.16,194.15,145.65695475]
[1739669167539,6.38819581,194.16,194.15,135.5]
[1739669167826,10.15695475,194.18,194.15,135.5]
[1739669168010,10.15695475,194.18,194.11,16.39865475]
[1739669168011,10.15695475,194.16,194.11,123.85442126]
[1739669168209,10.15695475,194.14,194.11,6.2417]
[1739669168411,10.15695475,194.13,194.1,117.61272126]
[1739669168615,10.15695475,194.12,194.06,98.80055023]
[1739669168818,10.15695475,194.1,194.06,6.2417]
[1739669170121,10.15695475,194.08,194.04,174.03885023]
[1739669170434,10.15695475,194.08,194.04,81.48]
[1739669170637,10.15695475,194.09,194.04,81.48]
[1739669171131,10.15695475,194.09,194.04,86.6333]
[1739669171436,10.15695475,194.09,194.04,81.48]
[1739669171819,10.15695475,194.09,194.04,86.6334]
[1739669172334,10.15695475,194.07,194.04,81.48]
[1739669173635,10.15695475,194.09,194.04,86.6335]
[1739669174249,10.15695475,194.08,194.04,86.6335]
[1739669174648,10.15695475,194.08,194.04,81.48]
[1739669174831,0.88902592,194.15,194.04,81.48]
[1739669174832,10.15695475,194.05,194.04,81.48]
[1739669176947,10.15695475,194.05,193.97,5.1554]
[1739669177128,10.15695475,193.98,193.97,5.1554]
[1739669177836,10.15695475,193.98,193.96,79.36]
[1739669178035,10.15695475,193.97,193.95,97.74455023]
[1739669178242,10.15695475,193.96,193.95,0.03]
[1739669180327,10.15695475,193.98,193.95,0.03]
[1739669180525,10.15695475,193.99,193.96,20.0]
[1739669180833,10.15695475,193.98,193.96,20.0]
[1739669181427,10.15695475,193.98,193.97,5.1554]
[1739669182219,10.15695475,194.01,193.97,5.1554]
[1739669182936,10.15695475,194.02,193.97,5.1554]
[1739669187755,5.1534,194.05,193.97,5.1554]
[1739669187936,10.15695475,194.01,193.97,5.1554]
[1739669190862,10.15695475,194.02,193.97,5.1554]
[1739669192664,10.15695475,194.03,193.97,5.1554]
[1739669192869,10.15695475,194.05,193.98,10.15695475]
[1739669193179,10.15695475,194.05,193.99,10.15695475]
[1739669194647,10.15695475,194.06,193.99,10.15695475]
[1739669195468,10.15695475,194.05,194.0,5.1546]
[1739669196668,10.15695475,194.04,194.0,5.1546]
[1739669196871,10.15695475,194.03,194.0,5.1546]
[1739669198276,10.15695475,194.03,193.99,166.1348]
[1739669199675,10.15695475,194.04,193.99,166.1348]
[1739669200061,10.15695475,194.06,193.99,176.29175475]
[1739669203380,0.063,194.1,194.04,10.15695475]
[1739669203592,0.063,194.1,194.05,23.56880328]
[1739669203882,0.063,194.1,194.05,10.15695475]
[1739669204070,0.063,194.1,194.06,10.15695475]
[1739669204391,0.063,194.1,194.07,10.15695475]
[1739669204577,0.063,194.1,194.06,23.56880328]
[1739669205253,0.063,194.1,194.07,5.1527]
[1739669205655,10.21995475,194.1,194.06,92.55885023]
[1739669205857,10.15695475,194.07,194.03,5.1538]
[1739669206974,10.15695475,194.08,194.02,5.1541]
[1739669208279,10.15695475,194.07,194.02,5.1541]
[1739669209378,10.15695475,194.08,194.02,5.1541]
[1739669211378,10.15695475,194.08,194.02,86.7741]
[1739669216583,10.15695475,194.06,194.02,86.7741]
[1739669217092,10.15695475,194.07,194.02,86.7741]
[1739669218188,10.15695475,194.05,194.02,86.7741]
[1739669218391,10.15695475,194.04,194.02,81.62]
[1739669218902,10.15695475,194.03,194.02,81.62]
[1739669219987,10.15695475,194.04,194.02,81.62]
[1739669220298,10.15695475,194.03,194.02,81.62]
[1739669220495,10.15695475,194.03,194.02,86.7741]
[1739669221983,10.15695475,194.03,194.02,81.62]
[1739669223982,10.15695475,194.03,194.02,86.7741]
[1739669224581,10.15695475,194.03,194.02,81.62]
[1739669225314,10.15695475,194.03,194.02,86.7741]
[1739669225603,10.15695475,194.05,194.02,86.7741]
[1739669225806,10.15695475,194.06,194.02,86.7741]
[1739669229008,10.15695475,194.06,194.02,86.8041]
[1739669232883,10.15695475,194.08,194.02,86.8041]
[1739669233287,10.15695475,194.07,194.02,86.8041]
[1739669234101,10.21995475,194.1,194.03,11.92975974]
[1739669234290,0.063,194.1,194.05,30.15695475]
[1739669235103,0.063,194.1,194.05,122.71580498]
[1739669235303,0.063,194.1,194.06,28.19255475]
[1739669235611,0.063,194.1,194.06,120.75140498]
[1739669236208,0.063,194.1,194.06,121.75140498]
[1739669237616,0.063,194.1,194.07,0.77256588]
[1739669237919,0.063,194.1,194.07,103.48837086]
[1739669238094,0.063,194.1,194.07,102.71580498]
[1739669238695,0.063,194.1,194.08,11.92950271]
[1739669238900,0.063,194.1,194.09,44.56880328]
[1739669239126,0.063,194.1,194.09,45.09310328]
[1739669239538,0.063,194.1,194.09,138.65195351]
[1739669239817,0.063,194.1,194.09,143.80415351]
[1739669240212,10.21995475,194.17,194.1,1.0]
[1739669240408,10.21995475,194.17,194.11,3.84]
[1739669241021,0.063,194.17,194.11,106.55580498]
[1739669241223,0.063,194.17,194.12,10.15695475]
[1739669241720,0.063,194.17,194.11,102.71580498]
[1739669241924,10.21995475,194.17,194.11,102.71580498]
[1739669242327,10.21995475,194.17,194.12,81.6]
[1739669242513,10.21995475,194.17,194.13,3.84]
[1739669243526,0.063,194.17,194.13,3.84]
[1739669243727,0.063,194.17,194.12,10.15695475]
[1739669244097,0.063,194.17,194.12,102.71580498]
[1739669244510,0.063,194.17,194.12,92.55885023]
[1739669244803,0.063,194.17,194.13,81.58]
[1739669245227,0.063,194.17,194.14,5.1509]
[1739669245413,0.063,194.17,194.14,97.70975023]
[1739669245902,10.21995475,194.17,194.14,97.70975023]
[1739669246920,0.063,194.17,194.14,97.70975023]
[1739669252905,0.063,194.17,194.14,94.66785475]
[1739669253106,0.063,194.17,194.15,10.15695475]
[1739669253308,0.063,194.17,194.16,5.1503]
[1739669253927,0.063,194.17,194.16,220.0103]
[1739669257317,0.063,194.17,194.16,230.16725475]
[1739669259919,0.0001,194.17,194.16,274.57910328]
[1739669260624,0.0001,194.17,194.16,260.16725475]
[1739669261335,0.0001,194.17,194.16,220.0103]
[1739669261934,0.0001,194.17,194.16,214.86]
[1739669262235,10.15705475,194.17,194.16,214.86]
[1739669262818,10.15705475,194.17,194.13,222.2311]
[1739669266318,0.0001,194.17,194.13,222.2311]
[1739669266513,10.15705475,194.17,194.13,217.08]
[1739669266749,10.15695475,194.15,194.13,217.08]
[1739669267643,10.15695475,194.15,194.13,81.58]
[1739669268147,10.15695475,194.14,194.13,81.58]
[1739669269853,10.15695475,194.15,194.13,81.58]
[1739669271029,10.15695475,194.14,194.13,81.58]
[1739669273458,10.15695475,194.15,194.13,81.58]
[1739669274427,10.15695475,194.14,194.13,81.58]
[1739669277056,15.30785475,194.14,194.13,81.58]
[1739669277557,16.91205475,194.14,194.13,81.58]
[1739669278338,11.76115475,194.14,194.13,81.58]
[1739669281852,11.76115475,194.14,194.1,0.03]
[1739669282054,10.15695475,194.12,194.1,0.03]
[1739669286256,10.15695475,194.13,194.1,0.03]
[1739669287066,10.15695475,194.14,194.1,0.03]
[1739669287237,10.15705475,194.17,194.1,10.18695475]
[1739669287853,10.15695475,194.16,194.1,10.18695475]
[1739669288450,10.15695475,194.16,194.1,0.03]
[1739669289265,10.15695475,194.16,194.1,5.1819]
[1739669289966,10.15695475,194.15,194.1,5.1819]
[1739669291444,10.15695475,194.15,194.1,86.7619]
[1739669291641,11.78335475,194.11,194.1,0.03]
[1739669297367,10.15695475,194.12,194.1,0.03]
[1739669299676,10.15695475,194.11,194.1,0.03]
[1739669306352,10.15695475,194.12,194.1,0.03]
[1739669309272,10.15695475,194.13,194.1,0.03]
[1739669309479,1.6293,194.16,194.1,0.03]
[1739669309480,10.15695475,194.14,194.1,0.03]
[1739669309652,10.15695475,194.15,194.1,0.03]
[1739669310172,10.15695475,194.14,194.1,0.03]
[1739669313282,10.15695475,194.16,194.1,10.18695475]
[1739669313474,10.15705475,194.17,194.1,10.18695475]
[1739669314177,0.0001,194.17,194.11,10.15695475]
[1739669314764,0.0001,194.17,194.12,30.15695475]
[1739669314973,0.0001,194.17,194.13,10.15695475]
[1739669315157,0.0001,194.17,194.14,10.15695475]
[1739669315353,0.0001,194.17,194.14,225.01695475]
[1739669316581,0.0001,194.17,194.15,5.1506]
[1739669322299,0.0001,194.17,194.15,15.30755475]
[1739669323889,0.0001,194.17,194.16,10.15695475]
[1739669324191,0.0001,194.17,194.16,225.01695475]
[1739669324368,0.0001,194.17,194.16,269.42880328]
[1739669324880,0.0001,194.17,194.16,274.57910328]
[1739669326291,0.0001,194.17,194.16,290.01910328]
[1739669336887,0.0001,194.17,194.16,291.01910328]
[1739669347576,0.0001,194.17,194.16,291.04910328]
[1739669350096,0.0001,194.17,194.16,372.58910328]
[1739669351197,8.0404,194.3,194.25,10.15695475]
[1739669351403,8.0404,194.3,194.25,225.01695475]
[1739669352191,8.0404,194.3,194.26,5.1477]
[1739669354113,1.6243,194.3,194.26,5.1477]
[1739669354486,1.6243,194.3,194.26,84.5077]
[1739669355016,1.6243,194.3,194.26,166.0277]
[1739669356013,1.6243,194.3,194.26,176.18465475]
[1739669359624,1.6243,194.3,194.28,10.15695475]
[1739669360415,1.6243,194.3,194.28,225.01695475]
[1739669360617,1.6243,194.3,194.29,5.1469]
[1739669360809,1.6243,194.3,194.29,84.5069]
[1739669364216,0.063,194.3,194.29,84.5069]
[1739669365420,0.063,194.3,194.29,94.66385475]
[1739669366002,0.063,194.3,194.29,230.16385475]
[1739669367927,0.063,194.3,194.29,220.0069]
[1739669371921,0.063,194.3,194.29,84.5069]
[1739669374118,0.063,194.3,194.29,166.0069]
[1739669379432,0.063,194.3,194.29,176.16385475]
[1739669383038,0.063,194.3,194.29,166.0069]
[1739669388435,0.063,194.3,194.29,84.5069]
[1739669399153,0.063,194.3,194.29,94.66385475]
[1739669401642,0.063,194.3,194.29,220.0069]
[1739669405564,0.063,194.3,194.29,243.57570328]
[1739669405744,1.5746,194.35,194.31,10.15695475]
[1739669406066,1.5746,194.35,194.31,225.01695475]
[1739669406658,1.5746,194.35,194.32,10.15695475]
[1739669407249,1.5746,194.35,194.33,10.15695475]
[1739669408377,1.5746,194.35,194.34,5.1456]
[1739669409663,0.063,194.37,194.34,5.1456]
[1739669410653,0.063,194.37,194.34,220.0056]
[1739669416471,0.063,194.37,194.34,84.5056]
[1739669420980,10.15695475,194.36,194.34,79.36]
[1739669421167,10.15695475,194.35,194.34,79.36]
[1739669422666,10.15695475,194.35,194.3,79.36]
[1739669422869,10.15695475,194.34,194.3,79.36]
[1739669423579,0.063,194.37,194.29,5.1468]
[1739669423580,10.15695475,194.33,194.29,5.1468]
[1739669423881,20.0,194.27,194.2,8.05933518]
[1739669424183,8.077,194.25,194.2,8.05933518]
[1739669424386,20.0,194.22,194.2,8.05933518]
[1739669424557,21.5498,194.2,194.17,0.03]
[1739669424759,20.0,194.15,194.1,0.03]
[1739669424963,10.15695475,194.13,194.1,0.03]
[1739669425978,15.30805475,194.13,194.1,0.03]
[1739669427163,10.15695475,194.11,194.1,0.03]
[1739669427565,50.78477375,194.11,194.1,0.03]
[1739669427775,51.67379967,194.11,194.1,0.03]
[1739669428182,20.0,194.07,194.02,81.53]
[1739669428388,10.15695475,194.06,194.02,81.53]
[1739669434989,15.30995475,194.06,194.02,81.53]
[1739669438885,15.30995475,194.06,194.02,0.03]
[1739669439075,10.15695475,194.03,194.02,0.03]
[1739669452702,15.31075475,194.03,194.02,0.03]
[1739669455603,10.15695475,194.03,194.02,0.03]
[1739669457891,15.31075475,194.03,194.02,0.03]
[1739669464535,10.15695475,194.03,194.02,0.03]
[1739669465611,10.15695475,194.03,193.99,0.03]
[1739669465926,10.15695475,194.0,193.99,0.03]
[1739669468512,10.15695475,194.01,193.99,0.03]
[1739669468904,10.15695475,194.0,193.99,0.03]
[1739669472617,55.93937375,194.0,193.99,0.03]
[1739669474030,50.78477375,194.0,193.99,0.03]
[1739669483125,10.15695475,194.0,193.99,0.03]
[1739669484547,0.063,194.05,193.99,0.03]
[1739669484548,10.15695475,194.02,193.99,0.03]
[1739669484926,10.15695475,194.04,193.99,0.03]
[1739669485248,0.063,194.05,193.99,238.45880328]
[1739669486026,0.063,194.02,193.99,238.45880328]
[1739669486346,0.063,194.02,194.01,23.56880328]
[1739669486537,0.063,194.02,194.01,28.72310328]